fUSD/lending_fUSD_20250930
["ID","MTS","AMOUNT","RATE_DAILY","PERIOD"]
[388596188,1759248664493,-500.0,0.00019178,2]
[388596189,1759248664503,-500.0,0.00019178,2]
[388596190,1759248664512,-151.0,0.00019178,2]
[388596191,1759248664521,-151.0,0.00019178,2]
[388596192,1759248664531,-615.25,0.00019178,2]
[388596193,1759248664541,-1103.350958,0.00019178,2]
[388596194,1759248664551,-1103.350958,0.00019178,2]
[388596195,1759248664561,-500.0,0.00019178,2]
[388596196,1759248664575,-151.0,0.00019178,2]
[388596197,1759248664585,-151.0,0.00019178,2]
[388596198,1759248664595,-1103.350958,0.00019178,2]
[388596199,1759248664607,-1103.350958,0.00019178,2]
[388596200,1759248664619,-151.0,0.00019178,2]
[388596201,1759248664629,-151.0,0.00019178,2]
[388596202,1759248664640,-1103.350958,0.00019178,2]
[388596203,1759248664652,-1103.350958,0.00019178,2]
[388596204,1759248664662,-13062.11914447,0.00019178,2]
[388596205,1759248664714,-666.0,0.00019178,2]
[388596206,1759248664725,-1260.3,0.00019178,2]
[388596207,1759248720834,50000.0,0.00033094,60]
[388596208,1759248724536,50000.0,0.00033094,61]
[388596209,1759248727602,50000.0,0.00033094,62]
[388596210,1759248731064,50000.0,0.00033094,63]
[388596211,1759248734517,50000.0,0.00033094,64]
[388596212,1759248751327,150.0,0.00029547,120]
[388596218,1759248870772,50000.0,0.00033094,60]
[388596219,1759248875452,50000.0,0.00033094,61]
[388596220,1759248877958,50000.0,0.00033094,62]
[388596221,1759248881153,50000.0,0.00033094,63]
[388596222,1759248884552,50000.0,0.00033094,64]
[388596226,1759248955071,945.38,0.00026737,120]
[388596227,1759248991411,150.0,0.00029764,120]
[388596228,1759249010249,162.22,8.906e-05,2]
[388596229,1759249111329,150.0,0.00028319,120]
[388596233,1759249171350,150.0,0.00029706,120]
[388596235,1759249254240,5000.0,0.00033088,60]
[388596236,1759249312002,300.0,0.0003,120]
[388596237,1759249325763,300.0,0.0003,120]
[388596242,1759249423652,5000.0,0.00033088,60]
[388596243,1759249456258,5000.0,0.00033088,60]
[388596244,1759249471342,150.0,0.00028546,120]
[388596245,1759249501155,5000.0,0.00033088,60]
[388596246,1759249522208,5000.0,0.00033088,60]
[388596248,1759249547312,5000.0,0.00033089,60]
[388596250,1759249560065,5000.0,0.00033089,60]
[388596252,1759249574920,5000.0,0.00033089,60]
[388596258,1759249663354,5000.0,0.00033089,64]
[388596260,1759249694241,5000.0,0.0003309,70]
[388596263,1759249722651,935.31479837,0.0003309,120]
[388596264,1759249754291,150.0,0.0003309,60]
[388596265,1759249774805,5000.0,0.0003309,60]
[388596267,1759249807363,5000.0,0.0003309,60]
[388596268,1759249808734,503.24,0.00016044,2]
[388596270,1759249821663,5000.0,0.0003309,60]
[388596285,1759249832205,-283.37313376,0.00016715,2]
[388596286,1759249832216,-536.03564532,0.00016715,2]
[388596287,1759249832226,-327.53105895,0.00016731,2]
[388596288,1759249832237,-792.96581108,0.00016731,2]
[388596289,1759249832266,-543.38300397,0.00016731,2]
[388596290,1759249832275,-126.91857597,0.00016814,2]
[388596291,1759249832290,-607.475,0.00016814,2]
[388596292,1759249832301,-465.60642403,0.00016814,2]
[388596293,1759249832311,-300.0,0.00016814,2]
[388596294,1759249832320,-157.0,0.00016814,2]
[388596296,1759249832330,-1118.96304471,0.00016815,7]
[388596297,1759249832341,-604.70994092,0.00016815,7]
[388596298,1759249832380,-1589.31134104,0.00016815,7]
[388596299,1759249832391,-26402.24771985,0.00016815,7]
[388596310,1759249832561,-322.43591646,0.00016815,7]
[388596311,1759249832587,-5631.54892812,0.00016815,7]
[388596312,1759249832681,-4581.42850488,0.00016815,7]
[388596313,1759249832692,-380.15953325,0.00016815,7]
[388596314,1759249832703,-5596.5,0.00016815,7]
[388596315,1759249832714,-1731.64063114,0.00016815,7]
[388596316,1759249832725,-2547.61520763,0.00016815,7]
[388596317,1759249832736,-413.90381312,0.00016815,7]
[388596318,1759249832838,-730.18553185,0.00016815,7]
[388596319,1759249832849,-468.0974856,0.00016815,7]
[388596320,1759249833106,5000.0,0.0003309,60]
[388596324,1759249837917,-372.26499408,0.00016814,2]
[388596325,1759249837927,-500.0,0.00016814,2]
[388596326,1759249837936,-309.28368109,0.00016814,2]
[388596327,1759249837948,-500.0,0.00016814,2]
[388596328,1759249837957,-500.0,0.00016814,2]
[388596329,1759249837967,-385660.97896943,0.00016815,7]
[388596330,1759249837976,-5268.09733227,0.00016815,7]
[388596331,1759249837986,-250.0,0.00016858,2]
[388596332,1759249837996,-2500.0,0.000169,2]
[388596333,1759249838005,-489.2098,0.000169,2]
[388596334,1759249838014,-604.07394155,0.000169,2]
[388596335,1759249838024,-337.65423012,0.000169,2]
[388596336,1759249838035,-234.99772676,0.000169,2]
[388596337,1759249838044,-1649.39902314,0.000169,2]
[388596338,1759249838053,-547.15999465,0.000169,2]
[388596339,1759249838063,-819.40877908,0.000169,2]
[388596340,1759249838073,-337.65423011,0.00016901,2]
[388596341,1759249838082,-337.65423011,0.00016901,2]
[388596342,1759249838091,-160.17617172,0.00016902,2]
[388596343,1759249838101,-337.65423011,0.00016902,2]
[388596344,1759249838111,-160.17617172,0.00016903,2]
[388596345,1759249838120,-337.65423011,0.00016903,2]
[388596346,1759249838130,-337.65423011,0.00016903,2]
[388596347,1759249838139,-160.17617172,0.00016903,2]
[388596348,1759249838150,-337.65423011,0.00016904,2]
[388596349,1759249838159,-160.17617172,0.00016904,2]
[388596350,1759249838170,-337.65423011,0.00016905,2]
[388596351,1759249838179,-160.17617172,0.00016905,2]
[388596352,1759249838189,-337.65423011,0.00016905,2]
[388596353,1759249838199,-1311.45113046,0.00016906,2]
[388596354,1759249838208,-160.17617172,0.00016906,2]
[388596355,1759249838218,-337.65423011,0.00016906,2]
[388596356,1759249838227,-604.07394151,0.00016935,2]
[388596357,1759249838236,-604.07394151,0.00016971,2]
[388596358,1759249838246,-500.0,0.00016973,2]
[388596359,1759249838258,-500.0,0.00016973,2]
[388596360,1759249838268,-500.0,0.00016973,2]
[388596361,1759249838278,-500.0,0.00016973,2]
[388596362,1759249838287,-215.08852705,0.0001699,2]
[388596363,1759249838297,-151.0,0.00016997,2]
[388596364,1759249838306,-151.0,0.00016997,2]
[388596365,1759249838315,-300.0,0.00016999,2]
[388596366,1759249838325,-300.0,0.00016999,2]
[388596367,1759249838335,-1548250.72655394,0.00017,2]
[388596368,1759249838345,-16127871.91379402,0.00017,2]
[388596369,1759249838355,-93465.36169168,0.00017,2]
[388596370,1759249838364,-604.07394151,0.00017006,2]
[388596371,1759249838374,-604.07394151,0.00017042,2]
[388596372,1759249838384,-604.07394151,0.00017077,2]
[388596373,1759249838393,-604.07394151,0.00017113,2]
[388596374,1759249838403,-250.0,0.00017133,2]
[388596375,1759249838413,-604.07394151,0.00017148,2]
[388596376,1759249838423,-604.07394151,0.00017184,2]
[388596377,1759249838432,-604.07394151,0.00017219,2]
[388596378,1759249838442,-150.0,0.00017357,2]
[388596379,1759249838451,-2364.12378475,0.00017361,2]
[388596380,1759249838462,-44442.35271978,0.00017361,2]
[388596381,1759249838472,-1653.866321,0.00017364,2]
[388596382,1759249838481,-61799.45398304,0.00017365,2]
[388596383,1759249838491,-44442.35271978,0.00017366,2]
[388596384,1759249838502,-2189.86733064,0.00017366,2]
[388596385,1759249838512,-2855.58126006,0.00017367,2]
[388596386,1759249838521,-22129.10089873,0.00017369,2]
[388596387,1759249838531,-186.2388733,0.00017369,2]
[388596388,1759249838540,-44442.35271978,0.00017381,2]
[388596389,1759249838549,-2364.12378475,0.00017384,2]
[388596390,1759249838559,-9217.22314733,0.00017386,2]
[388596391,1759249838568,-9217.22314733,0.00017388,2]
[388596392,1759249838578,-1653.866321,0.00017389,2]
[388596393,1759249838587,-4965.96201093,0.00017389,2]
[388596394,1759249838596,-186.2388733,0.00017392,2]
[388596395,1759249838606,-2855.58126006,0.00017394,2]
[388596396,1759249838616,-7835.51378617,0.00017395,2]
[388596397,1759249838625,-9217.22314733,0.00017398,2]
[388596398,1759249838635,-861.57702021,0.00017398,2]
[388596399,1759249838645,-967.19,0.000174,2]
[388596400,1759249838654,-1612.47,0.000174,2]
[388596401,1759249838664,-349.54,0.000174,2]
[388596402,1759249838674,-797.92,0.000174,2]
[388596403,1759249838683,-1653.866321,0.000174,2]
[388596404,1759249838693,-4965.96201093,0.00017403,2]
[388596405,1759249838703,-61799.45398304,0.00017404,2]
[388596406,1759249838712,-7835.51378617,0.00017406,2]
[388596407,1759249838722,-4082.37190706,0.00017411,2]
[388596408,1759249838732,-2189.86733064,0.00017412,2]
[388596409,1759249838742,-4965.96201093,0.00017415,2]
[388596410,1759249838751,-2855.58126006,0.00017416,2]
[388596411,1759249838760,-861.57702021,0.00017416,2]
[388596412,1759249838772,-22129.10089873,0.00017419,2]
[388596413,1759249838781,-2364.12378475,0.00017422,2]
[388596414,1759249838791,-2189.86733064,0.00017424,2]
[388596415,1759249838800,-4965.96201093,0.00017426,2]
[388596416,1759249838810,-861.57702021,0.00017428,2]
[388596417,1759249838819,-2364.12378475,0.00017434,2]
[388596418,1759249838829,-186.2388733,0.00017437,2]
[388596419,1759249838838,-4965.96201093,0.00017438,2]
[388596420,1759249838847,-7835.51378617,0.0001744,2]
[388596421,1759249838856,-186.2388733,0.00017441,2]
[388596422,1759249838865,-9217.22314733,0.00017442,2]
[388596423,1759249838880,-2189.86733064,0.00017445,2]
[388596424,1759249838890,-2855.58126006,0.00017447,2]
[388596425,1759249838900,-1653.866321,0.00017448,2]
[388596426,1759249838911,-2855.58126006,0.00017452,2]
[388596427,1759249838923,-1653.866321,0.00017456,2]
[388596428,1759249838933,-22129.10089873,0.00017459,2]
[388596429,1759249838942,-4082.37190706,0.0001746,2]
[388596430,1759249838954,-2189.86733064,0.00017461,2]
[388596431,1759249838963,-4082.37190706,0.00017463,2]
[388596432,1759249838973,-7835.51378617,0.00017463,2]
[388596433,1759249838983,-44442.35271978,0.00017463,2]
[388596434,1759249838993,-186.2388733,0.00017463,2]
[388596435,1759249839003,-61799.45398304,0.00017465,2]
[388596436,1759249839012,-9217.22314733,0.00017466,2]
[388596437,1759249839021,-61799.45398304,0.00017466,2]
[388596438,1759249839031,-861.57702021,0.0001747,2]
[388596439,1759249839042,-44442.35271978,0.00017476,2]
[388596440,1759249839051,-4082.37190706,0.0001748,2]
[388596441,1759249839060,-22129.10089873,0.00017484,2]
[388596442,1759249839070,-4082.37190706,0.00017489,2]
[388596443,1759249839080,-2364.12378475,0.00017492,2]
[388596444,1759249839090,-861.57702021,0.00017492,2]
[388596445,1759249839100,-61799.45398304,0.00017494,2]
[388596446,1759249839109,-7835.51378617,0.00017496,2]
[388596447,1759249839119,-22129.10089873,0.00017499,2]
[388596448,1759249839129,-150.0,0.00017507,2]
[388596449,1759249839138,-150.0,0.00017507,2]
[388596450,1759249839148,-150.0,0.00017507,2]
[388596451,1759249839158,-1000.0,0.00017521,2]
[388596452,1759249839167,-1000.0,0.00017521,2]
[388596453,1759249839177,-1000.0,0.00017521,2]
[388596454,1759249839187,-1000.0,0.00017521,2]
[388596455,1759249839197,-150.0,0.00017599,7]
[388596456,1759249839207,-166.74,0.00017647,2]
[388596457,1759249839217,-471.68,0.00017693,2]
[388596458,1759249839226,-160.0,0.0001771,2]
[388596459,1759249839236,-352.73,0.00017712,2]
[388596460,1759249839247,-1164.92,0.00017712,2]
[388596461,1759249839256,-1000.0,0.00017775,2]
[388596462,1759249839266,-162.22,0.00017811,2]
[388596463,1759249839276,-348.83,0.00017811,2]
[388596464,1759249839287,-610.0,0.00017811,2]
[388596465,1759249839298,-945.38,0.00017825,2]
[388596466,1759249839310,-168.01,0.00017866,2]
[388596467,1759249839322,-264.91,0.00017886,2]
[388596468,1759249839334,-69182.34916976,0.0001789,2]
[388596469,1759249839345,-223.06,0.00017954,2]
[388596470,1759249839357,-2000.0,0.00018,2]
[388596471,1759249839370,-2000.0,0.00018,2]
[388596472,1759249839382,-2000.0,0.00018,2]
[388596473,1759249839394,-2000.0,0.00018,2]
[388596474,1759249839407,-760.82,0.00018,2]
[388596475,1759249839421,-151.81,0.00018055,2]
[388596476,1759249839435,-151.17,0.00018055,2]
[388596477,1759249839446,-151.41,0.00018055,2]
[388596478,1759249839458,-304.01,0.00018055,2]
[388596479,1759249839470,-151.06,0.00018055,2]
[388596480,1759249839482,-152.01,0.00018055,2]
[388596481,1759249839493,-303.83,0.00018055,2]
[388596482,1759249839503,-152.18,0.00018055,2]
[388596483,1759249839514,-303.96,0.00018055,2]
[388596484,1759249839525,-1500.0,0.00018068,2]
[388596485,1759249839535,-1500.0,0.00018068,2]
[388596486,1759249839546,-1500.0,0.00018068,2]
[388596487,1759249839558,-1500.0,0.00018068,2]
[388596488,1759249839569,-1649.39902313,0.00018126,2]
[388596489,1759249839579,-150.55,0.00018152,2]
[388596490,1759249839589,-151.45,0.00018152,2]
[388596491,1759249839599,-152.12,0.00018152,2]
[388596492,1759249839608,-302.62,0.00018152,2]
[388596493,1759249839618,-666.0,0.00018159,3]
[388596494,1759249839628,-305.71,0.00018168,2]
[388596495,1759249839638,-152.66,0.00018169,2]
[388596496,1759249839647,-151.8,0.00018169,2]
[388596497,1759249839657,-150.94,0.00018169,2]
[388596498,1759249839667,-305.62,0.00018233,2]
[388596499,1759249839680,-165.05,0.00018233,2]
[388596500,1759249839691,-152.54,0.00018236,2]
[388596501,1759249839701,-152.96,0.00018236,2]
[388596502,1759249839711,-151.32,0.00018236,2]
[388596503,1759249839722,-1874.84,0.00018341,2]
[388596505,1759249839732,-500.0,0.00018355,2]
[388596507,1759249839742,-420.0,0.00018368,2]
[388596509,1759249839751,-1680.0,0.0001846,2]
[388596511,1759249839761,-400.0,0.00018495,2]
[388596512,1759249839771,-150.0,0.00018497,2]
[388596513,1759249839780,-500.0,0.00018497,2]
[388596514,1759249839790,-300.0,0.00018497,2]
[388596515,1759249839800,-300.41487226,0.00018497,2]
[388596516,1759249839811,-195.0,0.00018497,2]
[388596517,1759249839820,-300.0,0.00018497,2]
[388596518,1759249839830,-150.57187654,0.00018497,4]
[388596519,1759249839839,-425.07364107,0.00018497,2]
[388596520,1759249839848,-250.0,0.00018497,2]
[388596521,1759249839858,-300.0,0.00018497,2]
[388596522,1759249839868,-248.21404957,0.000185,2]
[388596523,1759249839883,-150.0,0.000185,2]
[388596524,1759249839893,-13163.82307381,0.000185,2]
[388596525,1759249839904,-151.22,0.00018508,2]
[388596526,1759249839915,-152.75,0.00018508,2]
[388596527,1759249839925,-151.01,0.00018508,2]
[388596528,1759249839935,-151.0,0.0001853,2]
[388596529,1759249839945,-150.99,0.00018533,2]
[388596530,1759249839956,-9999.99,0.00018533,2]
[388596531,1759249839965,-299.99,0.00018533,4]
[388596532,1759249839974,-304.94,0.00018533,2]
[388596533,1759249839984,-4832.51,0.00018533,2]
[388596534,1759249839994,-7842.33,0.00018533,2]
[388596535,1759249840004,-1510.66,0.00018533,2]
[388596536,1759249840013,-9999.99,0.00018533,2]
[388596537,1759249840022,-999.99,0.00018533,2]
[388596538,1759249840032,-81219.54,0.00018533,2]
[388596539,1759249840041,-1607.38,0.00018591,2]
[388596540,1759249840051,-806.89,0.00018591,2]
[388596541,1759249840060,-150.37,0.00018611,2]
[388596542,1759249840069,-2000.0,0.00018616,2]
[388596543,1759249840084,-2000.0,0.00018616,2]
[388596544,1759249840098,-2000.0,0.00018616,2]
[388596545,1759249840107,-801.22856971,0.00018616,2]
[388596546,1759249840117,-322.6107,0.00018628,2]
[388596547,1759249840126,-160.0,0.00018628,2]
[388596548,1759249840136,-7333.79568817,0.00018628,2]
[388596549,1759249840145,-601.3376128,0.00018628,2]
[388596550,1759249840155,-578.20924308,0.00018628,2]
[388596551,1759249840164,-151.0,0.00018628,2]
[388596552,1759249840174,-231.28369723,0.00018628,2]
[388596553,1759249840184,-195.0,0.000187,2]
[388596554,1759249840193,-168.01,0.00018759,2]
[388596555,1759249840203,-1600.98,0.00018767,2]
[388596556,1759249840212,-1000.0,0.000188,2]
[388596557,1759249840222,-376.4527,0.000188,2]
[388596558,1759249840231,-150.7,0.000188,2]
[388596559,1759249840240,-150.7,0.000188,2]
[388596560,1759249840249,-150.7,0.000188,2]
[388596561,1759249840258,-150.7,0.000188,2]
[388596563,1759249840267,-150.7,0.000188,2]
[388596564,1759249840277,-150.7,0.000188,2]
[388596565,1759249840286,-150.7,0.000188,2]
[388596566,1759249840295,-150.7,0.000188,2]
[388596567,1759249840303,-150.7,0.000188,2]
[388596568,1759249840313,-150.7,0.000188,2]
[388596569,1759249840322,-150.7,0.000188,2]
[388596570,1759249840330,-150.7,0.000188,2]
[388596571,1759249840339,-150.7,0.000188,2]
[388596572,1759249840349,-150.7,0.000188,2]
[388596573,1759249840358,-150.7,0.000188,2]
[388596574,1759249840368,-150.7,0.000188,2]
[388596575,1759249840376,-150.7,0.000188,2]
[388596576,1759249840386,-150.7,0.000188,2]
[388596577,1759249840394,-150.7,0.000188,2]
[388596578,1759249840404,-150.7,0.000188,2]
[388596579,1759249840413,-150.7,0.000188,2]
[388596580,1759249840424,-150.7,0.000188,2]
[388596581,1759249840434,-150.7,0.000188,2]
[388596582,1759249840443,-150.7,0.000188,2]
[388596583,1759249840452,-150.7,0.000188,2]
[388596584,1759249840461,-150.7,0.000188,2]
[388596585,1759249840470,-150.7,0.000188,2]
[388596586,1759249840480,-150.7,0.000188,2]
[388596587,1759249840488,-150.7,0.000188,2]
[388596588,1759249840498,-150.7,0.000188,2]
[388596589,1759249840507,-150.7,0.000188,2]
[388596590,1759249840516,-150.7,0.000188,2]
[388596591,1759249840525,-150.7,0.000188,2]
[388596592,1759249840534,-150.7,0.000188,2]
[388596593,1759249840544,-150.7,0.000188,2]
[388596594,1759249840553,-150.7,0.000188,2]
[388596595,1759249840563,-150.7,0.000188,2]
[388596596,1759249840573,-150.7,0.000188,2]
[388596597,1759249840582,-150.7,0.000188,2]
[388596598,1759249840592,-150.7,0.000188,2]
[388596599,1759249840602,-150.7,0.000188,2]
[388596600,1759249840618,-150.7,0.000188,2]
[388596601,1759249840637,-150.7,0.000188,2]
[388596602,1759249840647,-150.7,0.000188,2]
[388596603,1759249840657,-150.7,0.000188,2]
[388596604,1759249840666,-150.7,0.000188,2]
[388596605,1759249840679,-150.7,0.000188,2]
[388596606,1759249840688,-150.7,0.000188,2]
[388596607,1759249840698,-150.7,0.000188,2]
[388596608,1759249840708,-150.7,0.000188,2]
[388596609,1759249840718,-150.7,0.000188,2]
[388596610,1759249840728,-150.7,0.000188,2]
[388596611,1759249840737,-150.7,0.000188,2]
[388596612,1759249840746,-150.7,0.000188,2]
[388596613,1759249840757,-150.7,0.000188,2]
[388596614,1759249840766,-150.7,0.000188,2]
[388596615,1759249840776,-150.7,0.000188,2]
[388596616,1759249840785,-150.7,0.000188,2]
[388596617,1759249840795,-150.7,0.000188,2]
[388596618,1759249840805,-164.84958483,0.000189,2]
[388596619,1759249840815,-180.0,0.00018958,2]
[388596620,1759249840824,-1000.0,0.00018978,2]
[388596621,1759249840834,-100121.17916429,0.0001899,2]
[388596622,1759249841105,-1000.0,0.00018999,2]
[388596623,1759249841136,-33099.99,0.00019,2]
[388596624,1759249841146,-33099.99,0.00019,2]
[388596625,1759249841155,-33099.99,0.00019,2]
[388596626,1759249841165,-647.25,0.00019,7]
[388596627,1759249841176,-202.22,0.00019063,2]
[388596628,1759249841186,-474.52590314,0.00019075,2]
[388596629,1759249841196,-135738.8582,0.00019077,2]
[388596630,1759249841206,-1305.01417664,0.00019078,2]
[388596631,1759249841215,-5000.0,0.00019078,2]
[388596632,1759249841224,-1000.0,0.00019099,2]
[388596633,1759249841233,-3100.0,0.000191,2]
[388596634,1759249841243,-1305.01417658,0.00019139,2]
[388596635,1759249841252,-67209.00013502,0.0001915,2]
[388596636,1759249841261,-682.13059227,0.0001916,2]
[388596637,1759249841271,-2500.0,0.00019164,2]
[388596638,1759249841280,-2500.0,0.00019164,2]
[388596639,1759249841289,-2500.0,0.00019164,2]
[388596640,1759249841299,-500.0,0.00019173,2]
[388596641,1759249841308,-500.0,0.00019173,2]
[388596642,1759249841317,-500.0,0.00019173,2]
[388596643,1759249841327,-501.25175707,0.00019173,2]
[388596644,1759249841336,-500.07810043,0.00019173,2]
[388596645,1759249841346,-500.10340089,0.00019173,2]
[388596646,1759249841356,-500.0,0.00019173,2]
[388596647,1759249841366,-500.0,0.00019173,2]
[388596648,1759249841375,-500.0,0.00019173,2]
[388596649,1759249841385,-500.0,0.00019173,2]
[388596650,1759249841395,-500.0,0.00019173,2]
[388596651,1759249841404,-500.77160543,0.00019173,2]
[388596652,1759249841413,-500.0,0.00019173,2]
[388596653,1759249841424,-500.0,0.00019173,2]
[388596654,1759249841433,-500.31033319,0.00019173,2]
[388596655,1759249841443,-500.44024999,0.00019173,2]
[388596656,1759249841452,-500.0,0.00019173,2]
[388596657,1759249841462,-500.0,0.00019173,2]
[388596658,1759249841471,-500.0,0.00019173,2]
[388596659,1759249841481,-500.0,0.00019173,2]
[388596660,1759249841491,-500.66514915,0.00019173,2]
[388596661,1759249841500,-1000.0,0.00019177,2]
[388596662,1759249841510,-150.0,0.00019177,2]
[388596663,1759249841519,-300.0,0.00019177,2]
[388596664,1759249841528,-1568512.168991,0.00019177,2]
[388596665,1759249841538,-151.0,0.00019177,2]
[388596666,1759249841547,-2115.059367,0.00019177,2]
[388596667,1759249841556,-151.0,0.00019177,2]
[388596668,1759249841565,-151.0,0.00019177,2]
[388596669,1759249841574,-151.0,0.00019177,2]
[388596670,1759249841583,-2115.059367,0.00019177,2]
[388596671,1759249841593,-151.0,0.00019177,2]
[388596672,1759249841603,-2115.059367,0.00019177,2]
[388596673,1759249841612,-151.0,0.00019177,2]
[388596674,1759249841620,-2115.059367,0.00019177,2]
[388596675,1759249841629,-153.011882,0.00019177,2]
[388596676,1759249841639,-153.011882,0.00019177,2]
[388596677,1759249841648,-153.011882,0.00019177,2]
[388596678,1759249841658,-160.509519,0.00019177,2]
[388596679,1759249841667,-153.011882,0.00019177,2]
[388596680,1759249841678,-296.703193,0.00019177,2]
[388596681,1759249841687,-384.787376,0.00019177,2]
[388596682,1759249841703,-618.582831,0.00019177,2]
[388596683,1759249841721,-296.703193,0.00019177,2]
[388596684,1759249841731,-618.582831,0.00019177,2]
[388596685,1759249841740,-384.787376,0.00019177,2]
[388596686,1759249841749,-296.703193,0.00019177,2]
[388596687,1759249841758,-618.582831,0.00019177,2]
[388596688,1759249841767,-384.787376,0.00019177,2]
[388596689,1759249841777,-296.703193,0.00019177,2]
[388596690,1759249841787,-642.948477,0.00019177,2]
[388596691,1759249841797,-151.0,0.00019177,2]
[388596692,1759249841807,-618.582831,0.00019177,2]
[388596693,1759249841816,-384.787376,0.00019177,2]
[388596694,1759249841825,-642.948477,0.00019177,2]
[388596695,1759249841836,-151.0,0.00019177,2]
[388596696,1759249841845,-642.948477,0.00019177,2]
[388596697,1759249841855,-642.948477,0.00019177,2]
[388596698,1759249841866,-151.0,0.00019177,2]
[388596699,1759249841879,-151.0,0.00019177,2]
[388596700,1759249841888,-228.387763,0.00019177,2]
[388596701,1759249841897,-228.387763,0.00019177,2]
[388596702,1759249841908,-228.387763,0.00019177,2]
[388596703,1759249841918,-228.387763,0.00019177,2]
[388596704,1759249841929,-151.0,0.00019177,2]
[388596705,1759249841938,-169.152481,0.00019177,2]
[388596706,1759249841948,-177.377123,0.00019177,2]
[388596707,1759249841959,-158.614346,0.00019177,2]
[388596708,1759249841968,-177.377123,0.00019177,2]
[388596709,1759249841978,-177.377123,0.00019177,2]
[388596710,1759249841988,-158.614346,0.00019177,2]
[388596711,1759249841997,-158.614346,0.00019177,2]
[388596712,1759249842008,-177.377123,0.00019177,2]
[388596713,1759249842018,-158.614346,0.00019177,2]
[388596714,1759249842027,-879.582333,0.00019177,2]
[388596715,1759249842037,-151.0,0.00019177,2]
[388596716,1759249842047,-151.0,0.00019177,2]
[388596717,1759249842056,-692.508169,0.00019177,2]
[388596718,1759249842066,-879.582333,0.00019177,2]
[388596719,1759249842076,-3675.089856,0.00019177,2]
[388596720,1759249842085,-151.0,0.00019177,2]
[388596721,1759249842095,-692.508169,0.00019177,2]
[388596722,1759249842104,-151.0,0.00019177,2]
[388596723,1759249842114,-879.582333,0.00019177,2]
[388596724,1759249842124,-151.0,0.00019177,2]
[388596725,1759249842133,-151.0,0.00019177,2]
[388596726,1759249842143,-3675.089856,0.00019177,2]
[388596727,1759249842151,-568.709281,0.00019177,2]
[388596728,1759249842161,-151.0,0.00019177,2]
[388596729,1759249842171,-151.0,0.00019177,2]
[388596730,1759249842180,-692.508169,0.00019177,2]
[388596731,1759249842189,-151.0,0.00019177,2]
[388596732,1759249842199,-3675.089856,0.00019177,2]
[388596733,1759249842208,-879.582333,0.00019177,2]
[388596734,1759249842217,-568.709281,0.00019177,2]
[388596735,1759249842227,-282.70414,0.00019177,2]
[388596736,1759249842236,-151.0,0.00019177,2]
[388596737,1759249842245,-692.508169,0.00019177,2]
[388596738,1759249842254,-151.0,0.00019177,2]
[388596739,1759249842263,-3675.089856,0.00019177,2]
[388596740,1759249842272,-568.709281,0.00019177,2]
[388596741,1759249842281,-151.0,0.00019177,2]
[388596742,1759249842291,-169.190461,0.00019177,2]
[388596743,1759249842299,-151.0,0.00019177,2]
[388596744,1759249842308,-151.0,0.00019177,2]
[388596745,1759249842317,-568.709281,0.00019177,2]
[388596746,1759249842327,-169.190461,0.00019177,2]
[388596747,1759249842336,-733.35,0.00019178,2]
[388596748,1759249842345,-500.0,0.00019178,2]
[388596749,1759249842356,-955.76,0.00019178,2]